Cogmind - Beta 14 @@@ ROGUE MODE // 2024.08.31 @ 14:31:02 Player: huluvu Result: Destroyed by X-57 Shotgunner with High-powered Shotgun Performance ------------- Evolutions (2) 1000 Regions Visited (4) 800 Robots Destroyed (14) 70 Value Destroyed (382) 382 Prototype IDs (3) 60 Alien Tech Used (0) 0 Bonus (0) 0 TOTAL SCORE: 2312 Bonus ------- None Cogmind --------- Core Integrity 0/550 Matter 226/300 Energy 70/100 System Corruption 0% Temperature Cool (9) Movement Flying (120) Ox1 Location -8/Materials Parts ------- > --- POWER (2) -------- (None) > --- PROPULSION (3) --- Flight Unit > --- UTILITY (4) ------ Improved Signal Interpreter Improved Targeting Computer Utility Shielding > --- WEAPON (2) ------- EM Pulse Cannon > --- INVENTORY (5) ---- VTOL Module Peak State ------------ > --- POWER ------------ Light Nuclear Core Light Nuclear Core > --- PROPULSION ------- Xenon Bombardment Thruster Xenon Bombardment Thruster Xenon Bombardment Thruster > --- UTILITY ---------- Improved Heat Sink Utility Shielding Hardened Light Armor Plating Hacking Suite > --- WEAPON ----------- Beam Rifle Heavy Assault Rifle > --- INVENTORY -------- Wheel Wheel Armored Wheel Medium Laser Particle Gun [Rating: 31] Favorites ----------- Power Ion Engine Engine Ion Engine Power Core Light Nuclear Core Propulsion Xenon Bombardment Thruster Wheel Wheel Flight Unit Xenon Bombardment Thruster Utility Utility Shielding Device Improved Heat Sink Storage Small Matter Pod Processor Improved Targeting Computer Hackware Hacking Suite Protection Utility Shielding Weapon Light Assault Rifle Energy Gun Small Laser Energy Cannon EM Pulse Cannon Ballistic Gun Light Assault Rifle Ballistic Cannon Assault Cannon Special Weapon Plasma Cutter Build | -11 -10 -9 -9 -8 ------- Run | Yrd Mat Mat Min Mat Slots Evolved 4 | . . 2 . 2 Power 1 | . . 1 . . Propulsion 1 | . . . . 1 Utility 2 | . . 1 . 1 Weapon . | . . . . . Parts Attached 46 | 6 2 2 . 36 Power 9 | 2 . 1 . 6 Engine 5 | 2 . 1 . 2 Core 4 | . . . . 4 Reactor . | . . . . . Propulsion 14 | 2 . 1 . 11 Treads . | . . . . . Leg . | . . . . . Wheel 6 | 2 . 1 . 3 Hover . | . . . . . Flight 8 | . . . . 8 Utility 9 | . 2 . . 7 Device 1 | . . . . 1 Storage 1 | . . . . 1 Processor 2 | . . . . 2 Hackware 1 | . 1 . . . Protection 4 | . 1 . . 3 Artifact . | . . . . . Weapon 14 | 2 . . . 12 Energy Gun 6 | 1 . . . 5 Energy Cannon 2 | . . . . 2 Ballistic Gun 2 | 1 . . . 1 Ballistic Cannon 2 | . . . . 2 Launcher . | . . . . . Special Weapon 2 | . . . . 2 Impact Weapon . | . . . . . Slashing Weapon . | . . . . . Piercing Weapon . | . . . . . Special Melee Weapon . | . . . . . Unidentified Prototypes . | . . . . . Parts Lost 13 | . . . . 13 Power 3 | . . . . 3 Propulsion 5 | . . . . 5 Utility 2 | . . . . 2 Weapon 3 | . . . . 3 Highest Loss Streak 8 | . . . . 8 To Critical Strikes . | . . . . . Average Slot Usage (%) 83 | . 82 88 88 82 Engine 10 | . 14 22 22 6 Core 5 | . . . . 8 Wheel 13 | . 28 22 22 9 Flight 8 | . . . . 11 Device 1 | . . . . 2 Storage 1 | . . . . 2 Processor 3 | . . . . 4 Hackware 6 | . 1 11 11 6 Protection 12 | . 10 11 11 13 Energy Gun 9 | . 14 11 11 8 Ballistic Gun 8 | . 14 11 11 6 Peak Build Rating 31 | 5 9 11 11 31 Average Rating 15 | 3 5 10 11 19 On Entrance 7 | . 5 9 11 11 Naked Turns . | . . . . . Heaviest Build 23 | 7 8 11 11 23 Greatest Support 38 | 26 26 26 22 38 Greatest Overweight (x) 2 | . . . . 2 Average Overweight (x) . | . . . . . Largest Inventory Capacity 5 | 5 5 5 5 5 Average Capacity 5 | 5 5 5 5 5 Most Carried 5 | 3 3 5 5 5 Average Carried 3 | 1 2 3 5 4 Final Capacity 5 | 5 5 5 5 5 Final Carried 5 | 2 2 5 5 1 Class Distribution -------------------- 79% | Mutant 20% | Scavenger-Mutant Dominant Class ---------------- Mutant | -10/Materials Mutant | -9/Materials Mutant | -9/Mines Mutant | -8/Materials Resources | -11 -10 -9 -9 -8 ----------- Run | Yrd Mat Mat Min Mat Matter Collected 594 | 249 13 45 . 287 Remotely . | . . . . . Salvage Created 496 | . 13 44 . 439 Parts 42 | . 3 3 . 36 Haulers Intercepted . | . . . . . Recyclers Shooed . | . . . . . Parts Field Recycled . | . . . . . Retrieved Matter . | . . . . . Parts Self-Destructed . | . . . . . Prevented . | . . . . . Kills | -11 -10 -9 -9 -8 ------- Run | Yrd Mat Mat Min Mat Combat Hostiles Destroyed 12 | . . 1 . 11 Melee 1 | . . . . 1 Guns 10 | . . 1 . 9 Cannons 1 | . . . . 1 Classes Destroyed 6 | . 1 1 . 4 Worker 1 | . . . . 1 Operator 1 | . 1 . . . Swarmer 4 | . . . . 4 Cutter 1 | . . . . 1 Grunt 3 | . . 1 . 2 Sentry 4 | . . . . 4 Best Kill Streak 4 | . 1 1 . 4 Combat Bots Only 4 | . . 1 . 4 Max Kills in Single Turn 1 | . 1 1 . 1 Gunslinging . | . . . . . Exploded . | . . . . . Melee 1 | . . . . 1 Uniques/NPCs Destroyed . | . . . . . Combat | -11 -10 -9 -9 -8 -------- Run | Yrd Mat Mat Min Mat Hostile Shots Fired 159 | . . 12 3 144 Missed 43 | . . 2 2 39 Damage Taken 1821 | . . 144 12 1665 Core 584 | . . 14 12 558 Absorbed by Shields . | . . . . . Redirected to Shielding 21 | . . . . 21 Ignored by Resistances 18 | . . . . 18 Core Remaining (%) 97 | 100 100 . 93 . Volleys Fired 61 | . 6 5 . 50 Largest 2 | . 2 2 . 2 Hottest 107 | . 60 60 . 107 Shots Fired 110 | . 11 10 . 89 Gun 103 | . 11 10 . 82 Cannon 5 | . . . . 5 Launcher . | . . . . . Special 2 | . . . . 2 Kinetic 53 | . 6 5 . 42 Thermal 57 | . 5 5 . 47 Explosive . | . . . . . Electromagnetic . | . . . . . Robot Hit Streak 10 | . 2 3 . 10 Robot Miss Streak 3 | . 2 3 . 3 Penetration Max . | . . . . . Secondary Targets 1 | . . . . 1 Max Gunslinging Chain 1 | . . . . 1 Shots Hit Robots 67 | . 5 5 . 57 Core Hits 36 | . 3 5 . 28 Critical Kills . | . . . . . Critical Parts Destroyed . | . . . . . Critical Strikes 1 | . . . . 1 Burn 1 | . . . . 1 Melee Attacks . | . . . . . Impact . | . . . . . Slashing . | . . . . . Piercing . | . . . . . Sneak Attacks . | . . . . . Combat Hostiles . | . . . . . Follow-up Attacks . | . . . . . Damage Inflicted 953 | . 50 61 . 842 Guns 812 | . 50 49 . 713 Cannons 99 | . . . . 99 Explosions . | . . . . . Melee . | . . . . . Ramming 31 | . . 12 . 19 Kinetic 407 | . 17 14 . 376 Thermal 515 | . 33 35 . 447 Explosive . | . . . . . Electromagnetic . | . . . . . Impact . | . . . . . Slashing . | . . . . . Piercing . | . . . . . Highest Corruption 1 | . . 1 1 . Average Corruption 1 | . . 1 1 . Corruption Purged . | . . . . . Corruption Blocked . | . . . . . Overload Shots . | . . . . . Overflow Damage . | . . . . . Projectiles . | . . . . . Explosions . | . . . . . Melee . | . . . . . Knockbacks 1 | . . . . 1 Impact . | . . . . . Kinetic 1 | . . . . 1 Secondary . | . . . . . Self-Inflicted Damage 12 | . . 5 . 7 Shots . | . . . . . Rammed 16 | . . 7 . 9 Targets Rammed 16 | . . 7 . 9 Kicked . | . . . . . Crushed . | . . . . . Highest Temperature 370 | . 40 42 . 370 Average Temperature 89 | . 22 20 . 101 Received Heat Transfer 477 | . . 48 6 423 Effects 2 | . . . . 2 Shutdowns 1 | . . . . 1 Interference 1 | . . . . 1 Siege Activations . | . . . . . Robots Corrupted . | . . . . . Combat Hostiles . | . . . . . Parts Fried . | . . . . . Impact Corruptions . | . . . . . Robots Melted . | . . . . . Combat Hostiles . | . . . . . Parts Melted 2 | . . . . 2 Heat Transferred 1325 | . 75 75 . 1175 Parts Sabotaged . | . . . . . Parts Stolen . | . . . . . Parts Stripped . | . . . . . Power Chain Reactions . | . . . . . Alert | -11 -10 -9 -9 -8 ------- Run | Yrd Mat Mat Min Mat Peak Influence 261 | . 20 80 31 261 Initial 31 | . . 8 31 11 Average 69 | . 8 43 31 93 Maximum Alert Level 1 | . . . . 1 Low Security (%) 92 | 100 100 100 100 88 Level 1 7 | . . . . 11 Level 2 . | . . . . . Level 3 . | . . . . . Level 4 . | . . . . . Level 5 . | . . . . . High Security . | . . . . . Max Security . | . . . . . Squads Dispatched 6 | . 1 1 . 4 Investigation . | . . . . . Extermination . | . . . . . Reinforcement 6 | . 1 1 . 4 Assault . | . . . . . Garrison . | . . . . . Intercept . | . . . . . Searches Triggered . | . . . . . Construction Impeded . | . . . . . Haulers Reinforced . | . . . . . Active Scanning Responses . | . . . . . Cargo Convoy Interrupts . | . . . . . Stealth | -11 -10 -9 -9 -8 --------- Run | Yrd Mat Mat Min Mat Distress Signals 4 | . . 1 . 3 Communications Jammed . | . . . . . Distress Signals . | . . . . . Times Spotted 39 | . 2 5 5 27 Peak Tracking Total 8 | . 1 3 5 8 Tactical Retreats 3 | . . . . 3 Traps | -11 -10 -9 -9 -8 ------- Run | Yrd Mat Mat Min Mat Traps Triggered . | . . . . . Indirectly . | . . . . . Trap Hack Attempts . | . . . . . Triggered . | . . . . . Disarmed . | . . . . . Reprogrammed . | . . . . . Reused . | . . . . . Traps Extracted . | . . . . . Installed . | . . . . . Triggered . | . . . . . Machines | -11 -10 -9 -9 -8 ---------- Run | Yrd Mat Mat Min Mat Machines Disabled . | . . . . . Max in Single Turn . | . . . . . Machines Repaired . | . . . . . Machines Dismantled . | . . . . . Machines Sabotaged . | . . . . . Overloaded Fab Kills . | . . . . . Hacking | -11 -10 -9 -9 -8 --------- Run | Yrd Mat Mat Min Mat Machines Accessed 7 | . . 4 . 3 Terminals 5 | . . 2 . 3 Fabricators . | . . . . . Repair Stations . | . . . . . Recycling Units 1 | . . 1 . . Scanalyzers 1 | . . 1 . . Garrison Access . | . . . . . Total Hacks 19 | . . 11 . 8 Successful 14 | . . 9 . 5 Failed 5 | . . 2 . 3 Catastrophic 1 | . . 1 . . Database Lockouts . | . . . . . Manual 1 | . . . . 1 Terminals 12 | . . 4 . 8 Fabricators . | . . . . . Repair Stations . | . . . . . Recycling Units 2 | . . 2 . . Scanalyzers 5 | . . 5 . . Garrison Access . | . . . . . Terminal Hacks 8 | . . 3 . 5 Record 2 | . . . . 2 Prototype ID Bank 1 | . . 1 . . Terminal Index 1 | . . . . 1 Scanalyzer Index 1 | . . 1 . . Dispatch Records 1 | . . 1 . . Security Status 1 | . . . . 1 Zone Layout 1 | . . . . 1 Fabricator Hacks . | . . . . . Repair Station Hacks . | . . . . . Recycling Unit Hacks 1 | . . 1 . . Retrieve Matter 1 | . . 1 . . Scanalyzer 5 | . . 5 . . Insert Component 2 | . . 2 . . Analyze 3 | . . 3 . . Garrison Access Hacks . | . . . . . Unauthorized Hacks . | . . . . . Terminals . | . . . . . Fabricators . | . . . . . Repair Stations . | . . . . . Recycling Units . | . . . . . Scanalyzers . | . . . . . Garrison Access . | . . . . . Data Cores Recovered . | . . . . . Used . | . . . . . Hacking Detections 6 | . . 3 . 3 Full Trace Events 1 | . . 1 . . Feedback Events 1 | . . 1 . . Corruption 1 | . . 1 . . Feedback Blocked . | . . . . . Robot Schematics Acquired . | . . . . . Robots Built . | . . . . . Authchips . | . . . . . Time . | . . . . . Total Robot Build Rating . | . . . . . Part Schematics Acquired 2 | . . 2 . . Parts Built . | . . . . . Authchips . | . . . . . Time . | . . . . . Total Part Build Rating . | . . . . . Parts Repaired . | . . . . . Time . | . . . . . Parts Recycled . | . . . . . Recycled Matter . | . . . . . Retrieved Matter . | . . . . . Retrieved Components . | . . . . . Parts Scanalyzed 2 | . . 2 . . Part Schematics Acquired 2 | . . 2 . . Parts Damaged . | . . . . . Bothacking | -11 -10 -9 -9 -8 ------------ Run | Yrd Mat Mat Min Mat Used RIF Installer . | . . . . . Robots Hacked . | . . . . . Non-combat . | . . . . . Combat . | . . . . . Robot Hacks Applied . | . . . . . Relay Couplers Released . | . . . . . Fabnet Peak Effective % . | . . . . . Robots Rewired . | . . . . . Allies Hacked . | . . . . . Hacks Repelled . | . . . . . Allies | -11 -10 -9 -9 -8 -------- Run | Yrd Mat Mat Min Mat Total Allies . | . . . . . Largest Group . | . . . . . Highest-Rated Group . | . . . . . Highest-Rated Ally . | . . . . . Total Orders . | . . . . . Ally Attacks . | . . . . . Total Damage . | . . . . . Kills . | . . . . . Allies Corrupted . | . . . . . Allies Melted . | . . . . . Intel | -11 -10 -9 -9 -8 ------- Run | Yrd Mat Mat Min Mat Robot Analysis Total . | . . . . . Derelict Logs Recovered . | . . . . . Drone Launches . | . . . . . Drone Recoveries . | . . . . . Exploration | -11 -10 -9 -9 -8 ------------- Run | Yrd Mat Mat Min Mat Turns Passed 830 | 45 116 114 6 549 Spaces Moved 729 | 40 107 102 8 472 Core 10 | 10 . . . . Treads . | . . . . . Legs . | . . . . . Wheels 428 | 30 107 102 8 181 Hover . | . . . . . Flight 291 | . . . . 291 Fastest Speed 32 | 50 90 85 85 32 Average Speed 67 | 80 90 85 85 56 Slowest Speed 200 | 90 90 90 85 200 Overloaded Moves . | . . . . . Propulsion Burnouts . | . . . . . Robots Hopped . | . . . . . Cave-ins Triggered . | . . . . . Exploration Rate (%) 16 | 3 24 15 8 30 Regions Visited 4 Branch Regions 1 Pre-discovered Areas . | . . . . . Known Exits Taken . | . . . . . Unknown Exits Taken 4 | 1 1 1 1 . Scrap Searched . | . . . . . Spaces Dug . | . . . . . Terrain Destroyed . | . . . . . Melee . | . . . . . Projectile . | . . . . . AOE . | . . . . . Terrain Rammed . | . . . . . Walls Destroyed . | . . . . . Machines Disabled . | . . . . . Actions | -11 -10 -9 -9 -8 --------- Run | Yrd Mat Mat Min Mat Total 963 | 52 116 119 7 669 Wait 46 | . . . . 46 Move 726 | 39 106 102 7 472 Hop . | . . . . . Pick Up 45 | 7 2 4 . 32 Fast Attach . | . . . . . Attach 28 | 5 2 1 . 20 Detach 3 | . . . . 3 Swap 18 | 1 . 1 . 16 Drop 21 | . . . . 21 Fire 61 | . 6 5 . 50 Melee . | . . . . . Ram 15 | . . 6 . 9 Kick . | . . . . . Crush . | . . . . . Escape Stasis . | . . . . . Rewire . | . . . . . Trap . | . . . . . Miscellaneous . | . . . . . Route ------- -11/Scrapyard -10/Materials -9/Materials -9/Mines -8/Materials (discovered 1 exit: [Fac]) History --------- Turn | Location | Event 27 | -11/Scrapyard | Discovered new exit (range 15) 46 | -11/Scrapyard | Entered Materials 120 | -10/Materials | Discovered new exit (range 15) 162 | -10/Materials | Entered another Materials area 162 | -9/Materials | Evolved 2 slots: Power x1, Utility x1 244 | -9/Materials | Discovered new exit (range 10) 276 | -9/Materials | Entered Mines 277 | -9/Mines | Discovered new exit (range 6) 280 | -9/Mines | Met a Derelict bent on vengeance 282 | -9/Mines | Entered Materials 282 | -8/Materials | Evolved 2 slots: Propulsion x1, Utility x1 303 | -8/Materials | Build established: Mutant 499 | -8/Materials | Lost 4 parts (1p1n2w) 594 | -8/Materials | Discovered new exit (range 15) 784 | -8/Materials | Core integrity fell below 50% 828 | -8/Materials | Core integrity fell below 20% 831 | -8/Materials | Destroyed by X-57 Shotgunner with High-powered Shotgun Last Messages --------------- 00792_ Pulse Rifle severed. 00793_ Acquired VTOL Module. 00794_ U-05 Engineer builds a Door. 00794_ Xenon Bombardment Thruster destroyed. 00796_ Slug penetrates Wall. 00796_ Acquired 4 matter. 00797_ Acquired 1 matter. 00798_ U-05 Engineer builds a Wall. 00802_ Lgt. Nuclear Core destroyed. 00804_ Acquired 2 matter. 00810_ C-17 Slicer knocked back. 00817_ ALERT: Suspicious intruders detected, dispatching Specialist reinforcements to area. 00818_ Acquired EM Pulse Cannon. 00823_ Flight Unit destroyed. 00825_ Assault Cannon severed. 00825_ Reflective Plating destroyed. 00828_ R-06 Scavenger inserts Heat Sink into recycling unit. 00829_ Recycling unit begins recycling process. 00831_ EM Pulse Cannon severed. Map ----- +----------------------------------------------------+ | ?????????????????????????????????????????????????? | | ??????????????????? ?????????????????????????????? | | ??????????????????? ?????????????????????????????? | | ##########????????? ?????????????????????????????? | | !!! ! #????????? ?????????????????????????????? | | !=! #????????? ?????????????????????????????? | | ! ! [[#????????? ?????????????????????????????? | | [ #?????????+?????????????????????????????? | | %########## #???? ???????????????????????? | | = + #???# ##?????????????????????? | | [#= ##### #??? #????????????????????? | | ###+###### #???# ##?? #????????????????????? | | ## #???# ?? T +????????????????????? | | # ##########???#%#?? #????????????????????? | | / ## ###### #?? ?????????????????????? | | # ##""" + #??# #?????????????????????? | | ## ##""" ###### #??# #????? ??????????????? | | ? #""" #?####/#### #????" ??????????????? | | # # #?# % ## #???G ???????????????? | | + #?# [ ##g k##? ""????????????????? | | # ########?# # gc # ?????????????????? | | # #????????#! ] ] # # ??????????????????? | | #######????????# ]] /ggT xx???????????????????? | | ???????????????# ]] #] #????????????????????? | | ???????????????#= # c #????????????????????? | | ???????????????# ###@###????????????????????? | | ???????????????########?#a#??????????????????????? | | ???????????????????????? ??????????????????????? | | ???????????????????????? ?????????????????????? | | ???????????????????????""" #????????????????????? | | ???????????????????????"Y" ????????????????????? | | ###??????????????????? ???????????????????? | | ???????????????????? ??????????????????? | | #########???????????? ??????????????????? | | # #????????????# #?????????????????? | | # #????????????? #?????????????????? | | # #??????????????? +?????????????????? | | # #?????????????????? #?????????????????? | | # """ #?????????????????? #?????????????????? | | # """ #??????????????????# #???????????????????? | | # """ #????????????????????????????????????????? | | #+########???????????????????????????????????????? | | # ! #???????????????????????????????????????? | | += #???????????????????????????????????????? | | # #???????????????????????????????????????? | | # =#???????????????????????????????????????? | | ##### #???????????????????????????????????????? | | #??# #???????????????????????????????????????? | | ##??#=*! #???????????????????????????????????????? | | #???#=* #???????????????????????????????????????? | +----------------------------------------------------+ Best States ------------- Heat Dissipation 45 Energy Generation 23 Energy Capacity 400 Matter Stores 350 Matter Capacity 350 Sight Range 16 Terrain Scan Density 10 Armor Coverage 150 Resistance: TH 10 Utility Shielding 33 Evasion (%) 63 Targeting Accuracy 6 Offensive Hacking 10 Item Schematics ----------------- Com. Wheel | -9/Materials | Scanalyzed Med. Laser | -9/Materials | Scanalyzed Robot Schematics ------------------ None Fabricated ------------ Nothing Alien Tech Used ----------------- None Achievements -------------- Fist Fight Challenges ------------ None Game ------ Seed GuidedSingularityClaymores Manual? 0 Play Time 00:23:38 Cumulative 8.7 hours Start 2024.08.31 @ 14:09:22 End 2024.08.31 @ 14:31:02 Sessions 1 Manual Loads 0 Difficulty Rogue Special Mode None Game No. 11 Rogue 11 Adventurer 0 Explorer 0 Win Type - Total 0 Types 0/0/0/0/0/0/0/0/0 Lore% 8 Gallery% 21 Achievement% 16 Wizard Run 0 Options --------- Layout 0 ASCII 0 Keyboard 0 Movement Mouse Keybinds 0 Fullscreen 1 Font 24/Smallcaps Map View 76x50 Zoom Use 0% Tactical HUD 1 Map Filters NONE Filters NONE Steam 1 RUN: 2e9284e0-8761-4e14-a659-ce229ceefff7